bitfinex/quotes_ETHUSD_20251011
["timestamp","ask_amount","ask_price","bid_price","bid_amount"]
[1760170548842,1.0,3785.9,3785.8,3.27504962]
[1760170549037,1.0,3785.9,3785.8,35.61044202]
[1760170550671,1.001,3785.9,3785.8,35.61044202]
[1760170550879,1.001,3785.9,3785.8,50.61044202]
[1760170551072,1.001,3785.9,3785.8,20.61044202]
[1760170551306,1.001,3785.9,3785.8,50.61044202]
[1760170552571,1.0,3786.7,3786.6,33.27449156]
[1760170552777,1.0,3786.7,3786.6,33.82188396]
[1760170552985,1.0,3786.7,3786.6,35.74188396]
[1760170553858,0.4472,3789.2,3787.3,33.27400345]
[1760170554175,1.0,3789.8,3787.3,35.60939585]
[1760170554176,15.06,3787.4,3787.3,35.60939585]
[1760170554873,15.06,3787.4,3787.3,50.60939585]
[1760170555264,14.51,3787.4,3787.3,50.60939585]
[1760170555469,1.0,3789.8,3788.1,3.27344583]
[1760170555796,7.43,3788.2,3788.1,35.19344583]
[1760170555966,7.43,3788.2,3788.1,35.60883823]
[1760170556989,1.0,3789.8,3788.9,33.27288844]
[1760170557192,1.37,3789.0,3788.9,33.27288844]
[1760170557390,1.37,3789.0,3788.1,15.0]
[1760170557598,1.37,3789.0,3788.5,2.63956711]
[1760170557808,1.37,3789.0,3788.8,0.6336]
[1760170557978,1.37,3789.0,3788.9,15.59188844]
[1760170558174,1.37,3789.0,3788.1,30.0]
[1760170558378,1.32,3789.0,3785.2,30.0]
[1760170558577,1.32,3789.0,3787.8,2.6400399]
[1760170558786,1.32,3789.0,3788.0,3.965]
[1760170559100,1.32,3789.0,3787.8,0.6336]
[1760170559264,1.32,3789.0,3787.9,19.74]
[1760170559602,1.32,3789.0,3787.5,11.094]
[1760170559998,1.32,3789.0,3788.0,0.6336]
[1760170560402,1.32,3789.0,3787.8,0.6336]
[1760170560601,1.32,3789.0,3787.5,3.27386402]
[1760170560804,1.32,3789.0,3787.6,13.085]
[1760170561004,0.4472,3788.9,3786.6,30.0]
[1760170561408,0.37,3788.8,3787.0,2.64055799]
[1760170561620,0.37,3788.9,3786.6,10.0]
[1760170561785,0.8172,3788.7,3787.2,2.64041274]
[1760170561972,0.8172,3788.7,3787.4,0.6336]
[1760170562311,0.4472,3788.6,3786.2,10.0]
[1760170562517,0.4472,3788.6,3786.1,15.0]
[1760170562518,0.2342,3787.5,3786.1,15.0]
[1760170562678,0.37,3787.4,3786.1,15.0]
[1760170563046,0.37,3787.4,3786.4,2.64102214]
[1760170563172,0.37,3787.4,3785.0,15.0]
[1760170563173,0.37,3788.6,3787.4,30.6336]
[1760170563503,0.37,3788.9,3787.0,30.0]
[1760170563690,0.37,3788.9,3786.8,1.92]
[1760170563691,0.37,3788.9,3787.4,0.6336]
[1760170563896,0.37,3788.9,3788.8,3.4041581]
[1760170564227,0.37,3788.9,3788.8,45.3241581]
[1760170564416,0.37,3788.9,3788.8,35.1929581]
[1760170564591,0.37,3788.9,3788.8,2.5536]
[1760170564915,0.37,3788.9,3788.8,9.4386]
[1760170565116,0.37,3788.9,3788.8,6.2999581]
[1760170565684,0.37,3788.9,3788.8,8.2199581]
[1760170565992,0.37,3788.9,3788.8,5.1929581]
[1760170566201,0.37,3788.9,3788.8,35.1929581]
[1760170566827,1.0,3789.8,3789.7,5.19233129]
[1760170567025,1.0,3789.8,3789.7,35.19233129]
[1760170567913,1.0,3789.8,3789.7,50.19233129]
[1760170568847,1.0,3789.8,3789.7,35.19233129]
[1760170570003,1.0,3789.8,3789.7,5.19233129]
[1760170570355,1.0,3789.8,3789.7,22.682]
[1760170570636,1.0,3789.8,3789.3,15.0]
[1760170570799,1.0,3789.8,3787.7,2.64005757]
[1760170570800,0.4472,3789.7,3787.7,2.64005757]
[1760170571000,1.4472,3789.8,3787.7,30.0]
[1760170571234,0.4472,3789.7,3787.8,2.331]
[1760170571435,0.4472,3789.6,3788.0,2.63985143]
[1760170571635,1.0,3789.8,3787.8,2.64005491]
[1760170571841,1.0,3789.8,3788.3,14.30770608]
[1760170572016,1.0,3789.8,3788.5,30.0]
[1760170572210,1.0,3789.8,3788.8,2.63934862]
[1760170572406,1.0,3789.8,3787.6,10.0]
[1760170572639,0.4472,3789.7,3787.9,30.0]
[1760170572841,0.4472,3789.7,3788.2,2.63974746]
[1760170573015,0.4472,3789.7,3787.5,1.92]
[1760170573220,1.0,3789.8,3787.6,10.0]
[1760170573557,1.0,3789.8,3787.3,24.586]
[1760170573558,0.4472,3789.6,3787.3,24.586]
[1760170573707,1.0,3789.8,3788.7,2.6394005]
[1760170573905,1.0,3789.8,3788.9,2.63922595]
[1760170574104,1.0,3789.8,3789.1,2.63914287]
[1760170574341,1.0,3789.8,3789.7,0.1312]
[1760170574747,1.0,3789.8,3789.6,2.63877346]
[1760170574906,1.0,3789.8,3789.1,0.6336]
[1760170574907,1.0,3789.8,3789.7,2.76993129]
[1760170575120,1.0,3789.8,3789.7,33.40353129]
[1760170575712,1.0,3789.8,3789.7,35.19233129]
[1760170575942,1.0,3791.3,3790.4,3.27184398]
[1760170576142,1.0,3791.3,3790.4,35.19184398]
[1760170576143,0.45,3790.5,3790.4,35.19184398]
[1760170576307,0.45,3790.5,3790.4,35.55978553]
[1760170576614,1.0,3791.3,3791.2,33.27128727]
[1760170576818,1.0,3791.3,3791.2,35.43357546]
[1760170577244,0.4472,3794.7,3792.0,5.1907308]
[1760170577419,14.28149909,3795.4,3792.0,35.43301899]
[1760170577611,0.2342,3796.3,3792.0,6.7437308]
[1760170577612,0.6901,3793.8,3792.0,6.7437308]
[1760170578143,0.462,3794.5,3792.0,8.6637308]
[1760170578438,0.2342,3796.1,3792.0,17.9157308]
[1760170578439,0.2281,3793.6,3792.0,17.9157308]
[1760170578639,0.462,3793.8,3792.0,33.2707308]
[1760170578839,0.462,3794.3,3792.0,35.1907308]
[1760170579039,14.28149909,3795.4,3792.0,35.1907308]
[1760170579040,0.462,3794.8,3792.0,35.1907308]
[1760170579240,0.462,3794.8,3792.0,34.5571308]
[1760170579443,14.28149909,3795.4,3792.0,35.1907308]
[1760170579651,0.462,3794.3,3792.0,35.1907308]
[1760170579814,0.2281,3793.9,3792.0,19.0537308]
[1760170580010,0.2281,3793.9,3792.0,14.4937308]
[1760170580215,0.2281,3793.9,3792.0,9.0197308]
[1760170580427,0.2281,3793.9,3792.0,22.2257308]
[1760170580744,0.462,3794.0,3792.0,24.1457308]
[1760170580938,0.462,3794.7,3792.0,24.1457308]
[1760170581431,0.462,3794.7,3792.0,5.1907308]
[1760170581637,0.462,3794.7,3792.0,35.1907308]
[1760170582443,0.462,3794.7,3792.0,5.1907308]
[1760170582649,0.462,3794.3,3792.0,35.1907308]
[1760170583329,0.6901,3793.9,3792.0,35.1907308]
[1760170583841,0.462,3793.5,3792.0,32.6371308]
[1760170584025,0.2281,3793.9,3792.0,10.0091308]
[1760170584222,0.2281,3793.9,3792.0,1.92]
[1760170584223,0.462,3793.6,3792.0,1.92]
[1760170584415,0.462,3793.6,3792.0,4.5571308]
[1760170584819,0.6901,3793.9,3792.0,13.6767308]
[1760170585615,0.462,3793.2,3792.0,0.1312]
[1760170585811,1.462,3793.7,3792.0,2.7683308]
[1760170586021,1.462,3793.7,3792.0,33.4019308]
[1760170586345,1.0,3793.7,3792.0,35.1907308]
[1760170586725,1.0,3793.7,3792.8,33.27017456]
[1760170586915,1.0,3793.7,3792.8,35.19017456]
[1760170587116,1.0,3793.7,3793.6,3.26961855]
[1760170587318,1.0,3793.7,3793.6,33.26961855]
[1760170587517,1.0,3793.7,3793.6,35.18961855]
[1760170588937,1.0,3793.7,3793.6,48.08961855]
[1760170589137,1.0,3793.7,3793.6,50.18961855]
[1760170589549,1.0,3795.2,3794.3,3.26913224]
[1760170589857,1.0,3795.2,3794.3,35.18913224]
[1760170590060,0.95,3794.4,3794.3,35.18913224]
[1760170590650,1.0,3795.2,3794.3,35.18913224]
[1760170590651,1.0,3795.2,3795.1,4.55497668]
[1760170590855,1.0,3795.2,3795.1,35.18857668]
[1760170591970,1.0,3795.2,3795.1,50.18857668]
[1760170593366,1.0,3795.2,3795.1,50.57392619]
[1760170593668,1.0,3796.0,3795.1,50.57392619]
[1760170593669,1.0,3796.0,3795.9,33.26802134]
[1760170593875,1.0,3796.0,3795.9,35.18802134]
[1760170594072,1.0,3796.0,3795.9,5.18802134]
[1760170594359,1.0,3796.0,3795.9,35.18802134]
[1760170594759,1.0,3796.0,3795.1,15.0]
[1760170594760,1.0,3796.0,3795.2,30.0]
[1760170595071,1.0,3796.0,3795.1,15.0]
[1760170595072,1.0,3796.0,3795.0,1.92]
[1760170595361,1.0,3796.0,3795.9,2.63442134]
[1760170595561,1.0,3796.0,3795.1,2.63497668]
[1760170595562,1.0,3796.0,3795.4,1.92]
[1760170595860,1.0,3796.0,3795.7,30.0]
[1760170596064,1.0,3796.0,3795.0,31.92]
[1760170596378,1.0,3796.0,3795.5,1.92]
[1760170596581,1.0,3796.0,3794.9,15.0]
[1760170596906,1.0,3796.0,3794.3,30.0]
[1760170597169,1.0,3796.0,3794.4,2.63543748]
[1760170597374,1.0,3796.0,3794.5,2.63539043]
[1760170597587,1.0,3796.0,3794.3,1.92]
[1760170597796,0.6901,3795.9,3794.1,15.0]
[1760170597955,0.462,3795.8,3794.4,2.63545097]
[1760170598143,0.462,3795.8,3793.3,32.63622703]
[1760170598340,0.462,3795.8,3793.8,1.92]
[1760170598565,0.462,3795.8,3793.9,30.0]
[1760170598762,1.0,3796.0,3793.5,2.63608804]
[1760170598976,1.0,3796.0,3794.4,2.5536]
[1760170599274,1.0,3796.0,3794.7,30.0]
[1760170599577,1.0,3796.0,3793.8,2.63587387]
[1760170599578,1.462,3796.0,3794.4,30.0]
[1760170599874,1.0,3796.0,3795.3,2.63482291]
[1760170600079,1.0,3796.0,3795.6,2.63462266]
[1760170600276,1.0,3796.0,3795.1,1.92]
[1760170600451,1.0,3796.0,3795.3,1.92]
[1760170600650,1.0,3796.0,3795.4,2.991]
[1760170600856,1.0,3796.0,3795.0,10.0]
[1760170601076,1.0,3796.0,3795.9,2.63442134]
[1760170601252,1.0,3796.0,3795.9,35.18802134]
[1760170602259,1.0,3796.0,3795.6,4.775]
[1760170602461,1.0,3796.0,3795.5,2.63469528]
[1760170602694,1.0,3796.0,3795.2,2.6348605]
[1760170602859,1.0,3796.0,3795.0,1.92]
[1760170602860,1.0,3796.0,3795.7,30.0]
[1760170603061,1.0,3796.0,3795.2,1.92]
[1760170603392,1.0,3796.0,3795.0,30.0]
[1760170603594,1.0,3796.0,3794.8,30.0]
[1760170603879,1.0,3796.0,3795.0,30.0]
[1760170604057,1.0,3796.0,3795.5,2.63467833]
[1760170604406,1.0,3796.0,3795.9,32.63442134]
[1760170604609,1.0,3796.0,3795.9,2.63442134]
[1760170604899,1.0,3796.0,3795.9,30.0]
[1760170605220,1.0,3796.0,3795.9,33.26802134]
[1760170605384,1.0,3796.0,3795.9,34.55442134]
[1760170605574,1.0,3796.0,3795.9,5.18802134]
[1760170605776,1.0,3796.0,3795.9,35.18802134]
[1760170606480,1.0,3796.0,3795.9,34.55442134]
[1760170606788,1.0,3796.0,3795.9,30.1312]
[1760170606975,1.0,3796.0,3795.9,0.1312]
[1760170608305,1.0,3796.0,3795.9,30.1312]
[1760170608493,1.0,3796.0,3795.9,0.1312]
[1760170608892,1.0,3796.0,3795.9,34.55442134]
[1760170609107,1.0,3796.0,3795.9,1.92]
[1760170609275,1.0,3796.0,3794.3,10.002]
[1760170609480,1.0,3796.0,3794.5,1.92]
[1760170609804,1.0,3796.0,3795.4,1.92]
[1760170609984,1.0,3796.0,3794.9,2.5536]
[1760170610307,1.0,3796.0,3794.3,15.002]
[1760170610308,1.0,3796.0,3795.9,2.63442134]
[1760170610512,1.0,3796.0,3795.4,1.92]
[1760170610808,1.0,3796.0,3794.0,3.42805367]
[1760170610809,1.0,3796.0,3795.1,0.6336]
[1760170610983,1.0,3796.0,3795.2,15.243]
[1760170611189,1.0,3796.0,3794.9,30.0]
[1760170611387,1.0,3796.0,3795.2,1.92]
[1760170611709,1.0,3796.0,3795.4,1.92]
[1760170612006,1.0,3796.0,3795.2,4.55490592]
[1760170612503,1.0,3796.0,3795.3,2.63482268]
[1760170612704,1.0,3796.0,3795.2,2.63490725]
[1760170612908,1.0,3796.0,3794.8,17.5536]
[1760170613091,1.0,3796.0,3795.8,2.63447254]
[1760170613280,1.0,3796.0,3795.0,2.63504611]
[1760170613281,1.0,3796.0,3795.9,2.63442134]
[1760170613899,1.0,3796.0,3795.9,4.55442134]
[1760170614080,1.0,3796.0,3795.9,34.55442134]
[1760170614489,1.0,3796.0,3795.9,35.18802134]
[1760170615020,1.0,3796.0,3795.9,50.18802134]
[1760170616018,1.0,3796.0,3795.9,35.18802134]
[1760170616380,1.0,3796.0,3794.1,2.3568619]
[1760170616617,1.0,3796.0,3795.0,2.721]
[1760170616927,1.0,3796.0,3795.2,2.63485998]
[1760170617079,1.0,3796.0,3794.9,2.63510854]
[1760170617080,1.0,3796.0,3794.4,30.0]
[1760170617387,1.0,3796.0,3795.4,26.549]
[1760170617588,1.0,3796.0,3794.9,2.63505015]
[1760170617788,1.0,3796.0,3795.4,2.634766]
[1760170618028,1.0,3796.0,3795.5,2.63463201]
[1760170618234,1.0,3796.0,3795.9,2.63442134]
[1760170618379,1.0,3796.0,3795.9,35.18802134]
[1760170618902,1.0,3796.0,3795.9,35.31922134]
[1760170619092,1.0,3796.0,3795.9,11.14922134]
[1760170619411,1.0,3796.0,3795.9,4.68562134]
[1760170619610,1.0,3796.0,3795.9,34.55442134]
[1760170619808,1.0,3796.0,3795.9,35.18802134]
[1760170620016,1.0,3796.0,3795.9,35.31922134]
[1760170620511,1.0,3796.0,3795.9,4.68562134]
[1760170620679,1.0,3796.0,3795.9,0.1312]
[1760170620886,1.0,3796.0,3795.9,2.76562134]
[1760170621079,1.0,3796.0,3795.9,21.17962134]
[1760170621417,1.0,3796.0,3795.9,0.1312]
[1760170621730,1.0,3796.0,3795.9,2.0512]
[1760170621881,1.0,3796.0,3795.6,2.63461169]
[1760170622214,1.0,3796.0,3795.8,2.63448811]
[1760170622429,1.0,3796.0,3795.4,1.92]
[1760170622633,1.0,3796.0,3794.8,7.364]
[1760170622788,1.0,3796.0,3794.3,1.86961282]
[1760170623153,0.6739,3795.9,3795.0,2.63499174]
[1760170623335,0.6739,3795.9,3794.6,1.92]
[1760170623485,0.6739,3795.9,3795.1,0.002]
[1760170623682,1.0,3796.0,3795.1,0.002]
[1760170624083,1.0,3796.0,3795.1,1.922]
[1760170624393,1.0,3796.0,3795.1,4.55697649]
[1760170624611,1.0,3796.0,3795.6,2.63462908]
[1760170624819,1.0,3796.0,3795.9,2.63442134]
[1760170624993,1.0,3796.0,3795.1,12.5556]
[1760170625325,1.0,3796.0,3795.9,3.26802134]
[1760170625628,1.0,3796.0,3795.9,34.37702134]
[1760170626128,1.0,3796.0,3795.9,35.18802134]
[1760170626129,0.68363848,3796.0,3795.9,35.18802134]
[1760170626306,0.68363848,3796.0,3795.9,10.75135748]
[1760170626506,0.68363848,3796.0,3795.9,35.18802134]
[1760170626939,0.68363848,3796.0,3795.9,37.05235748]
[1760170627129,0.68363848,3796.0,3795.9,35.18802134]
[1760170628021,0.68363848,3796.0,3795.9,35.53566079]
[1760170628338,0.68363848,3796.0,3795.9,35.18802134]
[1760170628737,0.68363848,3796.0,3795.9,5.18802134]
[1760170629441,0.68363848,3796.0,3795.9,6.42009262]
[1760170629641,0.68363848,3796.0,3795.9,4.55442134]
[1760170629814,0.63363848,3796.0,3795.9,4.55442134]
[1760170630153,0.63363848,3796.0,3795.7,4.50018786]
[1760170630154,0.63363848,3796.0,3795.4,1.86567128]
[1760170630311,0.63363848,3796.0,3795.3,1.86567128]
[1760170630508,0.63363848,3796.0,3795.1,1.86767128]
[1760170630838,0.63363848,3796.0,3795.9,33.26802134]
[1760170631012,0.63363848,3796.0,3795.9,35.43092006]
[1760170631518,0.63363848,3796.0,3795.9,17.71528029]
[1760170631840,0.63363848,3796.0,3795.9,4.92852006]
[1760170632041,0.63363848,3796.0,3795.9,2.0512]
[1760170632737,0.63363848,3796.0,3795.9,2.76562134]
[1760170633035,0.63363848,3796.0,3795.9,4.68562134]
[1760170633240,0.63363848,3796.0,3795.9,6.55098157]
[1760170634018,0.63363848,3796.0,3795.9,0.1312]
[1760170634229,0.63363848,3796.0,3795.9,2.76562134]
[1760170634642,0.63363848,3796.0,3795.9,4.68562134]
[1760170634872,1.0,3796.8,3796.7,2.63386625]
[1760170635237,1.0,3796.8,3796.7,4.55386625]
[1760170635432,1.0,3796.8,3796.7,1.86760439]
[1760170635673,1.0,3796.8,3796.7,4.50147064]
[1760170635843,1.0,3796.8,3796.7,2.63386625]
[1760170636059,1.0,3796.8,3796.7,4.55386625]
[1760170636234,1.0,3796.8,3796.7,6.88872439]
[1760170636839,0.61181307,3796.8,3796.7,7.91136017]
[1760170637043,0.61181307,3796.8,3796.7,35.18746625]
[1760170637462,1.0,3797.5,3797.4,3.26698073]
[1760170637667,1.0,3797.5,3797.4,17.93798073]
[1760170637863,1.0,3797.5,3797.4,21.25400311]
[1760170638195,1.0,3797.5,3797.4,38.50300311]
[1760170638350,1.0,3797.5,3797.4,38.89203889]
[1760170638669,1.0,3798.3,3798.2,3.26642607]
[1760170638842,1.0,3798.3,3798.2,4.55282607]
[1760170639541,1.0,3798.3,3798.2,1.92]
[1760170639741,1.0,3798.3,3798.2,4.55282607]
[1760170640072,1.0,3798.3,3798.2,5.18642607]
[1760170640477,1.0,3798.3,3798.2,35.18642607]
[1760170640985,1.0,3800.7,3799.0,3.26587165]
[1760170641139,1.0,3800.7,3799.8,2.63171745]
[1760170641469,1.0,3800.7,3799.6,1.85744473]
[1760170641658,1.0,3800.7,3799.0,2.32180591]
[1760170641659,0.463,3800.4,3799.1,1.92]
[1760170641858,1.0,3800.7,3798.9,0.6336]
[1760170642081,1.0,3800.7,3799.8,2.63171745]
[1760170642598,1.0,3800.7,3799.8,5.18531745]
[1760170643263,1.0,3800.7,3799.8,1.92]
[1760170643474,1.0,3800.7,3799.8,4.55171745]
[1760170644194,1.0,3800.7,3799.8,35.18531745]
[1760170645173,1.0,3800.7,3800.6,3.2647635]
[1760170645374,1.0,3800.7,3800.6,33.2647635]
[1760170645575,1.0,3800.7,3800.6,35.1847635]
[1760170646596,1.0,3801.4,3801.3,33.26427897]
[1760170646786,1.0,3801.4,3801.3,35.18427897]
[1760170646992,1.0,3801.4,3801.3,35.42420665]
[1760170647577,1.0,3801.4,3801.3,35.81324243]
[1760170647898,1.0,3801.4,3801.3,35.42420665]
[1760170648088,1.0,3801.4,3801.3,35.18427897]
[1760170648667,0.010985,3802.6,3801.3,35.18427897]
[1760170648668,0.010985,3802.6,3802.1,35.18372545]
[1760170648870,0.010985,3802.6,3802.1,34.55012545]
[1760170649099,0.010985,3802.6,3802.0,30.0]
[1760170649300,0.010985,3802.6,3801.5,2.63051266]
[1760170649503,0.010985,3802.6,3801.8,6.36132362]
[1760170649705,0.010985,3802.6,3801.9,0.02630263]
[1760170649912,0.010985,3802.6,3802.1,2.63012545]
[1760170650076,0.010985,3802.6,3802.1,2.6564267]
[1760170650277,0.010985,3802.6,3802.1,0.02630125]
[1760170650597,0.010985,3802.6,3802.1,2.6564267]
[1760170650981,0.010985,3802.6,3802.1,33.2900267]
[1760170651183,0.010985,3802.6,3802.1,32.63012545]
[1760170651375,0.010985,3802.6,3802.1,6.57112545]
[1760170651575,0.010985,3802.6,3802.1,9.12472545]
[1760170652009,0.010985,3802.6,3802.1,1.92]
[1760170652190,0.010985,3802.6,3802.1,32.47172545]
[1760170652381,0.010985,3802.6,3802.1,4.55012545]
[1760170653323,0.010985,3802.6,3802.1,24.77512545]
[1760170653617,0.010985,3802.6,3802.1,25.40872545]
[1760170654105,0.010985,3802.6,3802.1,25.79776123]
[1760170654413,0.010985,3802.6,3802.1,35.18372545]
[1760170654980,0.010985,3802.6,3802.1,35.57276123]
[1760170655382,0.010985,3802.6,3802.5,3.26344878]
[1760170655579,0.010985,3802.6,3802.5,20.50544878]
[1760170655778,0.010985,3802.6,3802.5,22.42544878]
[1760170656005,0.010985,3802.6,3802.5,17.72044878]
[1760170656178,0.010985,3802.6,3802.5,35.18344878]
[1760170657309,0.010985,3802.6,3802.5,35.57248456]
[1760170657683,0.010985,3802.6,3802.5,30.38903578]
[1760170657881,0.010985,3802.6,3801.4,17.63058874]
[1760170658118,0.010985,3802.6,3801.5,30.0263054]
[1760170658318,0.010985,3802.6,3801.5,30.0]
[1760170658625,0.010985,3802.6,3802.5,34.54984878]
[1760170658829,0.010985,3802.6,3802.5,9.59744878]
[1760170659526,0.010985,3802.6,3802.5,35.18344878]
[1760170660511,1.0,3803.0,3802.9,33.26317216]
[1760170660751,1.0,3803.0,3802.9,35.18317216]
[1760170661388,1.0,3803.0,3802.9,35.5213296]
[1760170661585,1.0,3803.8,3803.7,5.18261911]
[1760170661897,1.0,3803.8,3803.7,35.18261911]
[1760170662416,1.0,3803.8,3803.7,24.41461911]
[1760170662783,1.0,3803.8,3803.7,35.18261911]
[1760170663012,1.0,3803.8,3803.7,50.18261911]
[1760170663218,1.0,3803.8,3803.7,41.15561911]
[1760170663925,1.0,3803.8,3803.5,2.62911271]
[1760170663926,1.0,3803.8,3803.2,30.0]
[1760170664086,1.0,3803.8,3803.5,23.553]
[1760170664283,1.0,3803.8,3803.1,15.0]
[1760170664496,1.0,3803.8,3803.3,2.62927869]
[1760170664699,1.0,3803.8,3803.1,15.0]
[1760170664926,1.0,3803.8,3802.9,2.62951526]
[1760170665231,1.0,3803.8,3801.6,32.63044521]
[1760170665413,0.4285,3803.7,3801.8,1.92]
[1760170665608,0.4285,3803.7,3801.9,0.02390291]
[1760170665929,0.4285,3803.7,3803.6,0.1312]
[1760170666631,1.0,3803.8,3803.6,0.1312]
[1760170667928,1.0,3803.8,3803.7,0.1312]
[1760170668929,1.0,3803.8,3803.7,2.62901911]
[1760170669098,1.0,3803.8,3803.7,43.39381911]
[1760170669296,1.0,3803.8,3803.7,33.39381911]
[1760170669701,1.0,3803.8,3803.7,35.18261911]
[1760170669913,1.0,3803.8,3803.7,5.18261911]
[1760170670203,1.0,3803.8,3802.8,15.0]
[1760170670699,1.0,3803.8,3803.4,2.62921079]
[1760170670899,1.0,3803.8,3802.1,14.579]
[1760170671131,1.0,3803.8,3802.7,2.62969221]
[1760170671332,1.0,3803.8,3802.3,15.452]
[1760170671333,1.0,3803.8,3803.3,2.62924102]
[1760170671532,1.0,3803.8,3802.0,15.0]
[1760170671533,1.0,3803.8,3803.0,2.62950302]
[1760170671829,1.0,3803.8,3803.4,1.92]
[1760170672048,1.0,3803.8,3803.7,3.26261911]
[1760170672340,1.0,3803.8,3803.7,35.18261911]
[1760170672505,1.0,3803.8,3803.7,17.90261911]
[1760170672928,1.0,3803.8,3803.7,18.24077655]
[1760170673112,1.0,3803.8,3803.7,5.52077655]
[1760170673314,1.0,3803.8,3803.7,35.52077655]
[1760170673525,1.0,3803.8,3803.7,13.58317655]
[1760170673829,1.0,3803.8,3803.7,13.87861911]
[1760170674019,1.0,3803.8,3803.1,15.0]
[1760170674329,1.0,3803.8,3803.7,32.62901911]
[1760170674731,1.0,3803.8,3803.1,15.0]
[1760170674932,1.0,3803.8,3802.3,11.85744473]
[1760170675131,1.0,3803.8,3803.0,2.62946642]
[1760170675307,1.0,3803.8,3802.3,30.0]
[1760170675507,1.0,3803.8,3803.0,2.62948555]
[1760170675760,1.0,3803.8,3802.3,30.0]
[1760170676033,1.0,3803.8,3801.7,2.63040218]
[1760170676210,1.0,3803.8,3802.0,10.0]
[1760170676413,1.0,3803.8,3803.6,2.62907071]
[1760170676616,1.0,3803.8,3802.4,30.0]
[1760170676617,1.0,3803.8,3802.6,1.92]
[1760170676934,1.0,3803.8,3803.1,2.62943388]
[1760170677134,1.0,3803.8,3802.9,1.92]
[1760170677305,1.0,3803.8,3803.0,17.738]
[1760170677634,1.0,3803.8,3803.7,33.26261911]
[1760170678249,1.0,3803.8,3803.7,32.62901911]
[1760170678416,1.0,3803.8,3803.7,33.26261911]
[1760170678614,1.0,3803.8,3803.7,35.18261911]
[1760170679589,1.0,3803.8,3803.5,15.0]
[1760170679869,1.0,3803.8,3803.7,0.1312]
[1760170680177,1.0,3803.8,3803.7,2.62901911]
[1760170680388,1.0,3803.8,3803.7,32.15001911]
[1760170680541,1.0,3803.8,3803.7,4.54901911]
[1760170680741,1.0,3803.8,3803.7,16.41261911]
[1760170681170,1.0,3803.8,3803.7,16.766819]
[1760170681377,1.0,3803.8,3803.7,16.41261911]
[1760170681545,1.0,3803.8,3803.4,17.62921511]
[1760170681873,1.0,3803.8,3802.3,0.002]
[1760170681874,0.4492,3803.7,3802.3,0.002]
[1760170682657,15.08569743,3803.7,3802.3,0.002]
[1760170682872,0.4492,3803.7,3802.3,0.002]
[1760170683349,0.4492,3803.7,3802.3,2.63197626]
[1760170683547,1.0,3803.8,3802.3,0.002]
[1760170683775,1.0,3803.8,3803.0,2.62947733]
[1760170683961,0.4492,3803.7,3802.3,0.002]
[1760170685661,14.63649743,3803.3,3802.3,0.002]
[1760170685974,15.08569743,3803.7,3800.8,0.35419989]
[1760170686173,14.63649743,3803.0,3800.3,1.85744473]
[1760170686478,14.63649743,3803.0,3801.2,2.6307199]
[1760170686479,0.4492,3802.9,3801.2,2.6307199]
[1760170686777,14.63649743,3803.0,3800.5,21.54721691]
[1760170686778,0.4492,3802.8,3800.5,17.41144473]
[1760170686977,0.4492,3802.7,3800.2,1.85744473]
[1760170687182,0.4492,3802.6,3800.0,30.0]
[1760170687382,0.4492,3802.6,3800.4,31.85744473]
[1760170687542,0.4492,3802.6,3801.4,2.63056641]
[1760170687849,0.4492,3802.6,3801.2,1.92]
[1760170688051,0.4492,3802.6,3801.7,2.63038796]
[1760170688252,1.0,3803.8,3801.4,1.92]
[1760170688253,0.4492,3803.1,3801.4,1.92]
[1760170688465,0.4492,3803.1,3801.9,2.63025941]
[1760170688652,0.4492,3803.0,3801.0,4.55085665]
[1760170688854,0.4492,3802.9,3801.8,2.6303329]
[1760170689063,0.4492,3802.8,3801.3,1.92]
[1760170689266,0.4492,3802.8,3801.2,1.92]
[1760170689466,1.0,3803.8,3800.4,4.4887221]
[1760170689467,15.08569743,3802.7,3800.4,4.4887221]
[1760170689667,15.08569743,3802.7,3800.1,2.32180591]
[1760170689668,0.4492,3802.6,3800.2,2.63144045]
[1760170689868,0.4492,3802.5,3799.8,2.63169191]
[1760170690079,0.4492,3802.4,3799.4,2.63198296]
[1760170690276,1.92,3802.6,3799.7,30.0]
[1760170690277,0.4492,3802.3,3799.7,30.0]
[1760170690480,14.63649743,3802.0,3799.2,1.85744473]
[1760170690682,1.92,3802.6,3799.1,0.002]
[1760170690683,14.63649743,3801.3,3799.1,0.002]
[1760170690851,0.6748,3801.9,3800.4,2.631291]
[1760170691050,0.4492,3801.8,3799.4,3.26559452]
[1760170691294,0.4492,3801.8,3799.3,10.0]
[1760170691295,0.4492,3801.8,3799.6,2.5536]
[1760170691477,0.4492,3801.7,3800.0,1.92]
[1760170691647,0.4492,3801.6,3799.6,2.5536]
[1760170691850,0.4492,3801.6,3799.7,1.92]
[1760170692192,0.4492,3802.2,3800.2,0.6336]
[1760170692351,0.4492,3802.2,3800.6,1.92]
[1760170692551,0.4492,3802.8,3801.7,2.63039255]
[1760170692752,0.4492,3802.8,3801.3,10.0]
[1760170692960,0.2256,3801.4,3800.3,15.0]
[1760170693197,4.16089707,3804.5,3800.4,10.459]